[Event "FIDE WSCC 50 2022"]
[Site "Assisi"]
[Date "2022.11.25"]
[Round "10.12"]
[White "de Francesco, Klaus"]
[Black "Prie, Eric"]
[Result "0-1"]
[ECO "D29"]
[WhiteElo "2171"]
[BlackElo "2356"]
[Annotator "TA"]
[PlyCount "67"]
[EventDate "2022.11.14"]
[EventType "swiss"]
[EventCountry "ITA"]
[SourceTitle "playchess.com"]
[Source "ChessBase"]
[SourceQuality "1"]
[TimeControl "40/5400+30:1800+30"]

{[%evp 25,67,-8,0,-23,-18,-58,-50,-76,-36,-123,-135,-161,-170,-170,-143,-185,-104,-117,-94,-91,-116,-105,-116,-105,-90,-94,-81,-81,-40,-27,8,-27,-9,-375,-373,-343,-359,-610,-594,-562,-568,-597,-119,-29987]} 1. d4 {[%emt 0:00:04]} d5 {[%emt 0:00:10]} 2. c4 {[%emt 0:00:21]} dxc4 {[%emt 0:00:09]} 3. Nf3 {[%emt 0:00:17]} a6 {[%emt 0:00:10]} 4. e3 {[%emt 0:00:20]} Nf6 {[%emt 0:01:21]} 5. Bxc4 {[%emt 0:00:21]} b5 {[%emt 0:00:08]} 6. Bb3 {[%emt 0:00:04]} Bb7 {[%emt 0:01:00]} 7. O-O {[%emt 0:00:22]} e6 {[%emt 0:00:13]} 8. Qe2 {[%emt 0:00:18]} Be7 {[%emt 0:02:09]} 9. a4 {[%emt 0:05:30]} b4 {[%emt 0:01:17]} 10. a5 {[%emt 0:00:42]} O-O {[%emt 0:00:54]} 11. Nbd2 {[%emt 0:00:11]} c5 {[%emt 0:00:35]} 12. Nc4 {[%emt 0:00:19]} Nbd7 {[%emt 0:01:14]} 13. Rd1 {[%emt 0:00:48]} Qc7 {[%emt 0:02:40]} 14. Nfe5 {[%emt 0:02:22][%cal Oe3e4] D29: Queen's Gambit Accepted: Classical main line: 7 Qe2 with early ...Nbd7.} Rac8 {[%emt 0:09:38]} 15. Ba4 {[%emt 0:07:40]} cxd4 {[%emt 0:12:06]} 16. exd4 {[%emt 0:00:59] [#] Black is slightly better.} Bd5 $146 {[%emt 0:00:38][%cal Rd5c4]} (16... Nxe5 {seems wilder.} 17. Nxe5 Qxa5 18. Bf4 Qd5) ({Predecessor:} 16... Nxe5 17. Nxe5 Qxa5 18. Bg5 Qd5 19. f3 Rfd8 20. Qe3 Ng4 21. Nxg4 Bxg5 22. Qd3 h5 {0-1 (38) Eckert,D (2246)-Pruess,D (2386) ICC INT 2011}) 17. b3 {[%emt 0:08:31]} (17. Bxd7 $15 Nxd7 18. Nb6 Nxb6 19. axb6) 17... Nxe5 $17 {[%emt 0:01:37]} 18. dxe5 {[%emt 0:00:16]} Ne4 {[%emt 0:00:48]} (18... Bxc4 19. bxc4 Ne8 20. Rd7 $16) 19. Bb2 {[%emt 0:04:40]} Bc5 $1 {[%emt 0:02:29] Prevents Nb6.} (19... Bxc4 20. Qxe4 Bd5 21. Qd3 $17) 20. Ne3 {[%emt 0:02:11]} Bxe3 {[%emt 0:08:23]} (20... Qxa5 21. Bd7 (21. Nxd5 exd5 22. Bd7 Qc7 $11) 21... Qb6 22. Bxc8 (22. Nxd5 exd5 23. Rxd5 Nxf2 $16) (22. Rxa6 Qc7 $14) 22... Bxe3 23. Qxe3 $16 (23. fxe3 Rxc8 24. Rac1 Ra8 $14)) (20... Rfd8 $1 $19 21. Nxd5 (21. Qxa6 $2 Bxe3 22. fxe3 Qc2 $19) 21... Bxf2+ 22. Qxf2 Nxf2 23. Nxc7 Nxd1 24. Nxa6 Nxb2 25. Nxb4 Nxa4 26. Rxa4 Rc3) 21. Qxe3 {[%emt 0:01:03]} Qc2 {[%emt 0:00:23]} (21... Qxa5 22. Bd7 Qc5 23. Bxc8 Qxe3 24. fxe3 $16) 22. Bd4 {[%emt 0:01:12]} Nc3 {[%emt 0:00:13]} 23. Rd2 {[%emt 0:02:54]} Qg6 {[%emt 0:00:43][%csl Gd5][%cal Rg6g2] Black is much more active.} 24. f3 {[%emt 0:01:27]} Nxa4 {[%emt 0:03:47]} 25. Rxa4 {[%emt 0:00:53]} Rc1+ {[%emt 0:01:13][%cal Bc8c1,Bc1f1,Bf1f2][%mdl 32]} 26. Kf2 {[%emt 0:00:08]} Rfc8 {[%emt 0:00:23] White must now prevent ...Rh1.} 27. Rxb4 {[%emt 0:02:17]} Qb1 {[%emt 0:08:36] aiming for ...Rh1.} 28. Ba7 {[%emt 0:05:05]} (28. Qd3 {simplifies} Qxd3 29. Rxd3 R8c2+ 30. Kg3) 28... h5 $40 {[%emt 0:17:29][%mdl 128] And now ...R8c3 would win. Black has some attack.} 29. Qg5 $2 {[%emt 0:04:34][%mdl 8192] [#]} (29. Kg3 $1 $11 {and White has nothing to worry.}) 29... Rf1+ $1 $19 {[%emt 0:04:31]} ({Not} 29... Bxb3 30. Kg3 (30. Qxh5 $2 {is the wrong capture.} Rf1+ 31. Kg3 Qe1+ 32. Kh3 Qxd2 $19) 30... R1c3 31. Rh4 $14 (31. Qxh5 Qe1+ 32. Rf2 g6 $14)) 30. Kg3 {[%emt 0:00:14] [#]} Qe1+ {[%emt 0:00:10]} 31. Bf2 $2 {[%emt 0:04:17] [#]} (31. Kh3 Bxf3 32. Qe3 (32. Rd8+ $2 Kh7 $19) 32... Bg4+ 33. Rxg4 hxg4+ 34. Kxg4) 31... Rxf2 $1 {[%emt 0:00:16][%mdl 576]} 32. Rxf2 {[%emt 0:00:10] Rh4 is the strong threat.} Qxb4 {[%emt 0:00:06]} 33. Rd2 {[%emt 0:46:30]} Bxf3 $2 {[%emt 0:21:31]} 34. Kh3 $2 {[%mdl 8192] Weighted Error Value: White=0.64/Black=0.41} (34. gxf3 $17 Qxa5 35. Qf4) 0-1

[Event "FIDE WSCC 50 2022"]
[Site "Assisi"]
[Date "2022.11.25"]
[Round "10.13"]
[White "Mileto, Gabriele"]
[Black "Arakhamia-Grant, Ketevan"]
[Result "0-1"]
[ECO "E96"]
[WhiteElo "2074"]
[BlackElo "2327"]
[Annotator "TA"]
[PlyCount "62"]
[EventDate "2022.11.14"]
[EventType "swiss"]
[EventCountry "ITA"]
[SourceTitle "playchess.com"]
[Source "ChessBase"]
[SourceQuality "1"]
[TimeControl "40/5400+30:1800+30"]

{[%evp 22,62,0,8,38,0,0,0,0,0,0,2,2,-63,-52,-59,-52,-60,-32,-40,-17,-24,-14,-16,-22,-25,-13,-34,0,-60,0,0,0,0,0,0,0,0,0,0,-9,0,0]} 1. d4 {[%emt 0:00:03]} Nf6 {[%emt 0:00:20]} 2. c4 {[%emt 0:00:21]} g6 {[%emt 0:00:34]} 3. Nc3 {[%emt 0:00:13]} Bg7 {[%emt 0:00:10]} 4. e4 {[%emt 0:00:07]} d6 {[%emt 0:00:04]} 5. Be2 {[%emt 0:00:09]} O-O {[%emt 0:00:54]} 6. Nf3 {[%emt 0:00:06]} Nbd7 {[%emt 0:02:49]} 7. O-O {[%emt 0:00:37]} e5 {[%emt 0:00:32]} 8. Re1 {[%emt 0:01:13]} Re8 {[%emt 0:08:42]} 9. Bf1 {[%emt 0:00:19]} c6 {[%emt 0:00:58]} 10. Rb1 {[%emt 0:00:33]} a5 {[%emt 0:14:40]} 11. b3 {[%emt 0:04:59]} exd4 {[%emt 0:09:15]} 12. Nxd4 {[%emt 0:00:23]} Ng4 {[%emt 0:08:30] [#] White must now prevent ...Qh4. E96: King's Indian: Classical: 7...Nbd7 8 Re1 c6 9 Bf1 a5.} 13. Qxg4 {[%emt 0:19:43] And now Bg5 would win.} (13. f3 $5 {[%cal Rf3g4]} Qb6 14. Nce2 $11) 13... Bxd4 {[%emt 0:00:55] [#]} 14. Bb2 $146 {[%emt 0:00:18]} ({Predecessor:} 14. Bg5 Nf6 15. Qf3 {½-½ (15) Collas,D (2381)-Demuth,A (2414) Naujac 2011}) 14... Qf6 {[%emt 0:01:49]} 15. Qf3 {[%emt 0:03:21]} Qxf3 {[%emt 0:08:00]} 16. gxf3 {[%emt 0:00:09]} Nc5 {[%emt 0:00:24][%cal Bd7c5,Bc5e6,Be6f4][%mdl 32]} 17. Nd1 {[%emt 0:02:13]} (17. Red1 $11 Be5 18. Na4) 17... Be5 $15 {[%emt 0:02:14] Black is much more active. The white rooks are badly placed.} 18. Ne3 {[%emt 0:10:15]} h5 {[%emt 0:01:47]} 19. Red1 $1 {[%emt 0:01:08]} Ne6 {[%emt 0:07:59]} 20. Bh3 {[%emt 0:04:08]} f5 {[%emt 0:16:42]} (20... f6 {simplifies} 21. Bxe6+ Bxe6 22. Bxe5 dxe5 23. c5 Red8) 21. exf5 {[%emt 0:05:24]} Nf4 {[%emt 0:00:11]} 22. Bf1 {[%emt 0:00:51]} gxf5 {[%emt 0:00:23]} 23. Bxe5 {[%emt 0:05:51]} dxe5 {[%emt 0:00:07]} 24. c5 {[%emt 0:00:55]} Be6 {[%emt 0:01:20]} 25. Rd6 {[%emt 0:02:52]} (25. Bc4 $11) 25... Kf7 {[%emt 0:06:07]} (25... Red8 $1 $15) 26. Bc4 $11 {[%emt 0:01:10] The position is equal.} Kf6 {[%emt 0:01:19]} 27. Rbd1 {[%emt 0:03:02]} Re7 {[%emt 0:01:23]} 28. Bxe6 {[%emt 0:01:45]} Nxe6 {[%emt 0:00:05]} 29. Nc4 {[%emt 0:01:05]} Rg8+ {[%emt 0:05:22]} 30. Kf1 {[%emt 0:00:22][%cal Od1e1]} Reg7 {[%emt 0:01:03]} 31. Ke2 {[%emt 0:06:42]} f4 {[%emt 0:00:33][%mdl 32768] Weighted Error Value: White=0.12 (very precise) /Black=0.10 (very precise) . Loss on time!?} 0-1

[Event "FIDE WSCC 50 2022"]
[Site "Assisi"]
[Date "2022.11.25"]
[Round "10.14"]
[White "Jhunjhnuwala, Krishan"]
[Black "Morin, Yves"]
[Result "1/2-1/2"]
[ECO "B07"]
[WhiteElo "2326"]
[BlackElo "2170"]
[Annotator "TA"]
[PlyCount "62"]
[EventDate "2022.11.14"]
[EventType "swiss"]
[EventCountry "ITA"]
[SourceTitle "playchess.com"]
[Source "ChessBase"]
[SourceQuality "1"]
[TimeControl "40/5400+30:1800+30"]

{[%evp 11,62,28,37,42,50,43,71,37,45,55,59,44,29,34,40,13,69,63,71,51,62,52,93,79,95,87,97,99,98,106,106,87,135,135,144,144,117,0,0,0,0,0,-6,-1,0,0,0,0,0,0,0,-12,-3]} 1. e4 {[%emt 0:00:04]} d6 {[%emt 0:00:12]} 2. d4 {[%emt 0:00:04]} Nf6 {[%emt 0:00:04]} 3. Nc3 {[%emt 0:00:06]} e5 {[%emt 0:00:14]} 4. dxe5 {[%emt 0:00:37]} dxe5 {[%emt 0:00:05]} 5. Qxd8+ {[%emt 0:00:41]} Kxd8 {[%emt 0:00:11]} 6. Nf3 {[%emt 0:02:22]} Bd6 {[%emt 0:03:20]} 7. Be3 {[%emt 0:02:02] B07: Pirc Defence: Miscellaneous Systems.} Nbd7 {[%emt 0:13:17]} 8. O-O-O {[%emt 0:05:49]} a6 {[%emt 0:31:27]} 9. a4 {[%emt 0:17:16] White is much more active. The black rooks are badly placed. White is better.} Ke8 {[%emt 0:05:31]} 10. h3 {[%emt 0:02:03] [#] Against Ng4} Bb4 $146 {[%emt 0:08:44]} ({Predecessor:} 10... b6 11. Nd2 Bb7 12. Nc4 Bb4 13. f3 Bxc3 14. bxc3 Nh5 15. Rg1 f6 16. h4 Nf4 {½-½ (95) Tekeyev,Z (2380)-Novikov,M (2501) Sochi 2017}) 11. Nd5 {[%emt 0:06:10]} Nxd5 {[%emt 0:00:32]} 12. exd5 {[%emt 0:01:39]} Bd6 {[%emt 0:11:20]} 13. Nd2 {[%emt 0:02:03]} Nf6 {[%emt 0:04:54]} ({Better is} 13... f5 $11 14. Nc4 Nf6) 14. Nc4 $14 {[%emt 0:01:22]} Bd7 {[%emt 0:03:33]} 15. b3 {[%emt 0:01:37][%cal Of2f4]} Bf5 {[%emt 0:05:29]} 16. f3 {[%emt 0:03:34]} Nd7 {[%emt 0:01:50]} 17. Be2 {[%emt 0:02:04]} f6 {[%emt 0:00:33]} 18. Nxd6+ {[%emt 0:05:04]} cxd6 {[%emt 0:00:07]} 19. a5 {[%emt 0:01:33]} Rc8 {[%emt 0:01:09]} 20. c4 {[%emt 0:00:20]} Kf7 {[%emt 0:03:23]} 21. Kb2 {[%emt 0:02:06]} h5 {[%emt 0:01:05]} (21... Bg6 $142) 22. b4 $16 {[%emt 0:03:49]} g5 {[%emt 0:01:44]} 23. Rc1 {[%emt 0:04:55]} e4 {[%emt 0:00:58] [#]} 24. c5 {[%emt 0:01:25]} (24. f4 $1 $16 {[%cal Rf4g5]}) 24... exf3 $11 {[%emt 0:00:34] The position is equal.} 25. Bxf3 {[%emt 0:02:27]} Ne5 {[%emt 0:00:11]} 26. Rc3 {[%emt 0:04:25]} g4 {[%emt 0:01:02]} 27. Be2 {[%emt 0:01:14] A strong pair of Bishops.} (27. hxg4 {simplifies} hxg4 28. Rxh8 Rxh8 29. Be2) 27... Be4 {[%emt 0:00:16][%csl LRd5,LRg2] Inhibits c6.} 28. hxg4 {[%emt 0:01:48]} hxg4 {[%emt 0:00:16]} 29. Rxh8 {[%emt 0:03:12]} Rxh8 {[%emt 0:00:06]} 30. cxd6 {[%emt 0:00:59] [#] And now Rc7+ would win.} Bxd5 {[%emt 0:01:02]} 31. g3 {[%emt 0:03:16]} Rh2 {[%emt 0:00:50] Weighted Error Value: White=0.11 (very precise) /Black=0.11 (very precise)} 1/2-1/2

[Event "FIDE WSCC 50 2022"]
[Site "Assisi"]
[Date "2022.11.25"]
[Round "10.15"]
[White "Nevednichy, Vladislav"]
[Black "Arkell, Keith C"]
[Result "1-0"]
[ECO "C10"]
[WhiteElo "2499"]
[BlackElo "2408"]
[Annotator "TA"]
[PlyCount "79"]
[EventDate "2022.11.14"]
[EventType "swiss"]
[EventCountry "ITA"]
[SourceTitle "playchess.com"]
[Source "ChessBase"]
[SourceQuality "1"]
[TimeControl "40/5400+30:1800+30"]

{[%evp 13,79,49,45,43,42,41,44,24,62,52,58,6,9,11,11,10,16,0,6,-40,-13,-25,26,-33,-2,-34,-26,-37,0,-49,-47,-32,-31,-35,-29,-63,-67,-124,-92,-102,-108,-111,-111,-110,-45,-39,210,186,176,173,229,230,246,231,254,241,220,146,116,79,123,69,138,86,201,205,212,40]} 1. e4 {[%emt 0:00:03]} e6 {[%emt 0:00:05]} 2. d4 {[%emt 0:00:05]} d5 {[%emt 0:00:03]} 3. Nc3 {[%emt 0:00:18]} dxe4 {[%emt 0:00:06]} 4. Nxe4 {[%emt 0:00:04]} Bd7 {[%emt 0:00:03]} 5. Nf3 {[%emt 0:00:27]} Bc6 {[%emt 0:00:06]} 6. Bd3 {[%emt 0:00:07]} Nd7 {[%emt 0:00:06]} 7. Qe2 {[%emt 0:11:24]} Ngf6 {[%emt 0:00:51]} 8. Nc3 {[%emt 0:01:54] C10: French with 3 Nc3: Unusual Black 3rd moves and 3...dxe4.} Bxf3 {[%emt 0:02:06]} 9. Qxf3 {[%emt 0:00:02]} c6 {[%emt 0:00:07] [#]} 10. g4 $146 {[%emt 0:07:39] White is slightly better.} ({Predecessor:} 10. Be3 Be7 11. O-O-O Nd5 12. Nxd5 cxd5 13. Kb1 Nb6 14. h4 Rc8 15. Qg4 Bf6 16. h5 {1-0 (33) Gierden,H (2047)-Meyer,F (1920) GER email 2015}) 10... Nd5 {[%emt 0:11:50]} 11. Nxd5 {[%emt 0:03:54]} cxd5 {[%emt 0:00:14]} 12. g5 {[%emt 0:01:11]} (12. h4 $14) 12... g6 $1 $11 {[%emt 0:04:43]} 13. c3 {[%emt 0:04:01]} h5 {[%emt 0:01:32]} 14. Bf4 {[%emt 0:15:00]} Bg7 {[%emt 0:00:21]} 15. h4 {[%emt 0:00:50]} O-O {[%emt 0:00:24]} 16. O-O-O {[%emt 0:11:02]} (16. O-O $11) 16... Qa5 {[%emt 0:00:48]} 17. Kb1 {[%emt 0:00:28]} b5 {[%emt 0:02:44]} (17... Rfc8 $142) 18. Qe2 {[%emt 0:01:21]} (18. Bd6 $11) 18... a6 {[%emt 0:00:50]} 19. a3 {[%emt 0:12:08]} Qb6 {[%emt 0:06:27]} 20. Rh3 {[%emt 0:00:31]} Ra7 {[%emt 0:01:07]} 21. Bc1 {[%emt 0:06:01]} (21. Re3 $11) 21... Rc8 $15 {[%emt 0:09:16]} 22. Re3 {[%emt 0:00:14]} Rb7 {[%emt 0:05:09]} 23. f4 $1 {[%emt 0:00:48][%cal Od3g6]} Nf8 {[%emt 0:02:40]} 24. Bc2 {[%emt 0:06:03]} a5 {[%emt 0:01:53][%cal Ba6a5,Ba5b4][%mdl 32]} 25. Bb3 {[%emt 0:06:28]} (25. Bd2 $15) 25... b4 $17 {[%emt 0:02:08]} 26. cxb4 {[%emt 0:00:03]} (26. axb4 $2 axb4 27. cxb4 Bxd4 $19) 26... axb4 {[%emt 0:00:06]} (26... Bxd4 $6 27. bxa5 Qa7 28. a6 Rxc1+ 29. Rxc1 $11) 27. a4 {[%emt 0:00:05][%cal Of4f5]} Bxd4 {[%emt 0:02:37] White must now prevent ...Rxc1+.} 28. Red3 {[%emt 0:01:57]} Rbc7 {[%emt 0:01:47]} 29. f5 $15 {[%emt 0:04:24] [#]} exf5 $2 {[%emt 0:00:29]} 30. Bf4 $18 {[%emt 0:00:54]} Bg7 {[%emt 0:11:02][%cal Oc7c4]} 31. Bxc7 {[%emt 0:00:05] Active counter play!} Qxc7 {[%emt 0:00:04]} (31... Rxc7 {was necessary.} 32. Rxd5 (32. Bxd5 Qa7 $16) 32... Qa7) 32. Rxd5 {[%emt 0:00:24]} ({Don't take} 32. Bxd5 $6 Kh7 33. Bb3 Qf4) 32... Qg3 {[%emt 0:00:10]} 33. R5d3 {[%emt 0:00:54]} Qxh4 {[%emt 0:00:10]} 34. Qe7 {[%emt 0:00:28]} Kh7 {[%emt 0:00:35]} 35. Qxf7 {[%emt 0:02:17][%csl Gb3][%cal Rf7g8] Dancing on a razor blade.} Qxg5 {[%emt 0:00:12]} 36. Ka2 $40 {[%emt 0:01:29][%mdl 128] White goes for the king.} Kh6 {[%emt 0:00:39]} 37. R3d2 {[%emt 0:00:59]} (37. Qb7 $16 Qf6 38. R1d2 (38. Qxc8 $2 Qxb2#)) 37... Rc1 {[%emt 0:03:20]} 38. Qd5 {[%emt 0:01:37]} (38. Rxc1 $142 Qxd2 39. Rc2) 38... Rxd1 {[%emt 0:00:20]} (38... Rc7 $16 {is a better defense.}) 39. Rxd1 {[%emt 0:00:16]} Qf6 {[%emt 0:02:36][%csl Gg7][%cal Rf6b2] [#]} 40. Qd2+ $2 {[%emt 0:01:15] Weighted Error Value: White=0.23 (precise) /Black=0.28 (precise)} (40. Rd2 $1 $18) 1-0

[Event "FIDE WSCC 50 2022"]
[Site "Assisi"]
[Date "2022.11.26"]
[Round "11.1"]
[White "Sturua, Zurab"]
[Black "Nevednichy, Vladislav"]
[Result "1/2-1/2"]
[ECO "E92"]
[WhiteElo "2522"]
[BlackElo "2499"]
[Annotator "TA"]
[PlyCount "44"]
[EventDate "2022.11.14"]
[EventType "swiss"]
[EventCountry "ITA"]
[SourceTitle "playchess.com"]
[Source "ChessBase"]
[SourceQuality "1"]
[TimeControl "40/5400+30:1800+30"]

{[%evp 26,27,0,4]} 1. d4 {[%emt 0:00:09]} Nf6 {[%emt 0:00:04]} 2. c4 {[%emt 0:00:13]} g6 {[%emt 0:00:09]} 3. Nc3 {[%emt 0:00:11]} Bg7 {[%emt 0:00:04]} 4. e4 {[%emt 0:00:20]} d6 {[%emt 0:00:04]} 5. Nf3 {[%emt 0:00:16]} O-O {[%emt 0:00:05]} 6. Be2 {[%emt 0:00:07]} e5 {[%emt 0:01:51]} 7. dxe5 {[%emt 0:02:27]} dxe5 {[%emt 0:00:08]} 8. Qxd8 {[%emt 0:00:06]} Rxd8 {[%emt 0:00:02]} 9. Bg5 {[%emt 0:00:10]} Re8 {[%emt 0:00:17]} 10. Nd5 {[%emt 0:00:12]} Nxd5 {[%emt 0:00:05]} 11. cxd5 {[%emt 0:00:05]} c6 {[%emt 0:00:09]} 12. Bc4 {[%emt 0:00:18]} cxd5 {[%emt 0:06:47]} 13. Bxd5 {[%emt 0:00:34]} Nd7 {[%emt 0:00:09] 13...Nd7 is better than 13...Nc6.} 14. Nd2 {[%emt 0:00:13] [#]} {Predecessor:} Nb6 $146 {E92: King's Indian: Classical: 6 Be2 e5: 7 dxe5, 7 Be3 and Petrosian System without 7...Nbd7.} 15. Bb3 Be6 16. Ke2 Rac8 17. Rhc1 Bxb3 18. axb3 Rxc1 19. Rxc1 Rc8 20. Nc4 Nxc4 21. bxc4 Bf8 22. b3 Bc5 {1-0 (72) Abdusattorov,N (2651)-Swiercz,D (2656) Chess.com INT 2022} 1/2-1/2

[Event "FIDE WSCC 50 2022"]
[Site "Assisi"]
[Date "2022.11.26"]
[Round "11.2"]
[White "Novik, Maxim"]
[Black "Morovic Fernandez, Ivan"]
[Result "1-0"]
[ECO "C90"]
[WhiteElo "2412"]
[BlackElo "2480"]
[Annotator "TA"]
[PlyCount "81"]
[EventDate "2022.11.14"]
[EventType "swiss"]
[EventCountry "ITA"]
[SourceTitle "playchess.com"]
[Source "ChessBase"]
[SourceQuality "1"]
[TimeControl "40/5400+30:1800+30"]

{[%evp 31,81,30,28,22,23,35,42,37,56,56,56,56,59,59,48,45,45,34,41,30,34,36,32,12,14,33,32,34,44,55,60,70,61,64,70,60,90,86,70,70,83,70,70,70,74,70,70,70,71,70,164,146]} 1. e4 {[%emt 0:00:03]} e5 {[%emt 0:00:29]} 2. Nf3 {[%emt 0:00:07]} Nc6 {[%emt 0:00:07]} 3. Bc4 {[%emt 0:00:05]} Nf6 {[%emt 0:00:05]} 4. d3 {[%emt 0:00:05]} Be7 {[%emt 0:00:10]} 5. O-O {[%emt 0:00:34]} O-O {[%emt 0:00:07]} 6. Re1 {[%emt 0:00:33]} d6 {[%emt 0:00:06]} 7. c3 {[%emt 0:05:07]} Na5 {[%emt 0:07:40]} 8. Bb5 {[%emt 0:00:43]} a6 {[%emt 0:00:14]} 9. Ba4 {[%emt 0:00:05]} b5 {[%emt 0:00:04]} 10. Bc2 {[%emt 0:00:06]} c5 {[%emt 0:00:03]} 11. Nbd2 {[%emt 0:00:09]} Nc6 {[%emt 0:02:01]} 12. Nf1 {[%emt 0:00:40]} h6 {[%emt 0:01:45]} 13. Ng3 {[%emt 0:01:01]} Re8 {[%emt 0:03:50]} 14. h3 {[%emt 0:00:18]} Bf8 {[%emt 0:00:03]} 15. d4 {[%emt 0:05:00]} cxd4 {[%emt 0:04:30]} 16. cxd4 {[%emt 0:00:44]} exd4 {[%emt 0:00:07]} 17. Nxd4 {[%emt 0:00:28] C90: Closed Ruy Lopez with 7...d6: Early deviations.} Nxd4 {[%emt 0:00:35]} 18. Qxd4 {[%emt 0:00:02]} Bb7 {[%emt 0:00:03]} 19. Bf4 {[%emt 0:01:09] White is slightly better.} d5 {[%emt 0:20:47]} 20. e5 {[%emt 0:12:50]} Ne4 {[%emt 0:00:37]} 21. Nxe4 {[%emt 0:03:19]} dxe4 {[%emt 0:00:12]} 22. Qe3 {[%emt 0:03:16]} Rc8 {[%emt 0:14:09] [#]} 23. Rad1 $146 {[%emt 0:06:00]} ({Predecessor:} 23. Bxe4 Bxe4 24. Qxe4 Rc4 25. Qf3 Qd4 26. b3 Rc3 27. Rad1 Rxf3 28. Rxd4 Bc5 29. gxf3 Bxd4 {½-½ (74) Yemelin,V (2577)-Predke,A (2464) Samara 2012}) 23... Qh4 {[%emt 0:06:28]} 24. Bg3 {[%emt 0:07:02]} (24. Bb3 {seems wilder.} Bc5 25. Bg3 Qh5 26. Qf4) 24... Qg5 {[%emt 0:00:28]} (24... Bc5 $2 25. Bxh4 Bxe3 26. Bb3 $18) 25. Bxe4 {[%emt 0:06:27]} Qxe3 {[%emt 0:01:34]} 26. Rxe3 {[%emt 0:00:01]} Bxe4 {[%emt 0:00:04]} 27. Rxe4 {[%emt 0:00:06]} Rc2 {[%emt 0:00:18] Against Re2} 28. Red4 {[%emt 0:00:34]} g5 {[%emt 0:16:32]} 29. R1d2 {[%emt 0:03:35]} Rxd2 {[%emt 0:09:05]} 30. Rxd2 $14 {[%emt 0:00:01][%mdl 4096] Endgame KRB-KRB} Bg7 {[%emt 0:00:02]} 31. Re2 {[%emt 0:04:32]} f6 {[%emt 0:08:49][%cal Rf6e5]} 32. e6 {[%emt 0:00:15]} Bf8 {[%emt 0:01:00]} 33. Bc7 {[%emt 0:07:19]} f5 {[%emt 0:00:58]} 34. g4 {[%emt 0:00:16]} fxg4 {[%emt 0:01:51]} 35. hxg4 {[%emt 0:00:01]} Kg7 {[%emt 0:00:49]} 36. Bb6 {[%emt 0:11:59] White is more active.} Kg6 {[%emt 0:01:05]} 37. Kg2 {[%emt 0:00:47]} h5 {[%emt 0:01:23]} 38. gxh5+ {[%emt 0:00:01]} Kxh5 {[%emt 0:00:01]} 39. Kf3 {[%emt 0:00:01]} Bd6 {[%emt 0:01:02]} 40. Re4 {[%emt 0:00:38] Inhibits g4+.} g4+ {[%emt 0:00:00]} (40... Kg6 $14) 41. Ke3 $1 {[%emt 0:55:01] Weighted Error Value: White=0.02 (flawless) /Black=0.07 (flawless)} (41. Rxg4 $2 {perishes.} Rf8+ 42. Ke4 Kxg4 $19) 1-0

[Event "FIDE WSCC 50 2022"]
[Site "Assisi"]
[Date "2022.11.26"]
[Round "11.3"]
[White "Bischoff, Klaus"]
[Black "Bellia, Fabrizio"]
[Result "1/2-1/2"]
[WhiteElo "2479"]
[BlackElo "2398"]
[Annotator "TA"]
[PlyCount "33"]
[EventDate "2022.11.14"]
[EventType "swiss"]
[EventCountry "ITA"]
[SourceTitle "playchess.com"]
[Source "ChessBase"]
[SourceQuality "1"]
[TimeControl "40/5400+30:1800+30"]

{[%evp 13,15,9,2,-4]} 1. c4 {[%emt 0:00:10]} Nf6 {[%emt 0:00:14]} 2. Nc3 {[%emt 0:00:18]} e6 {[%emt 0:00:11]} 3. Nf3 {[%emt 0:00:52]} b6 {[%emt 0:00:18]} 4. g3 {[%emt 0:03:12]} Bb7 {[%emt 0:00:29]} 5. Bg2 {[%emt 0:00:09]} Be7 {[%emt 0:00:30]} 6. O-O {[%emt 0:00:50]} O-O {[%emt 0:00:17]} 7. b3 {[%emt 0:01:41]} d5 {[%emt 0:02:13] 7...d5 scores better than 7...c5.} 8. e3 {[%emt 0:03:50] [#] Not much happened in this game.  A14: English Opening: 1...e6 with b3 by White.} {Predecessor:} c5 $146 9. Bb2 Qc8 10. Rc1 dxc4 11. bxc4 Rd8 12. Qe2 Nc6 13. Rfd1 Nb4 14. d3 a6 15. d4 Qc7 16. a3 cxd4 17. exd4 {1-0 (32) Tomashevsky,E (2706)-Kozak,A (2518) Chess.com INT 2021} 1/2-1/2